bitfinex-derivatives/quotes_SOLF0:USTF0_20250603
["timestamp","ask_amount","ask_price","bid_price","bid_amount"]
[1748928124390,2.1361,158.95,158.89,6.55728849]
[1748928124588,6.2882,158.94,158.9,31.14]
[1748928124787,2.1172,158.96,158.9,36.9716219]
[1748928125189,6.33495485,158.95,158.91,0.04355745]
[1748928125389,6.33495485,158.95,158.91,6.33275745]
[1748928125891,6.2881,158.94,158.91,6.33275745]
[1748928126493,0.04695485,158.95,158.91,6.33275745]
[1748928126685,0.04695485,158.95,158.91,0.04355745]
[1748928127082,6.2884,158.94,158.91,0.04355745]
[1748928127984,6.2885,158.93,158.91,0.04355745]
[1748928133402,6.2882,158.94,158.91,6.33285745]
[1748928134704,6.2886,158.93,158.91,0.04355745]
[1748928135699,6.2889,158.92,158.91,0.04355745]
[1748928135897,6.55728849,158.92,158.87,36.94190145]
[1748928136100,6.55728849,158.92,158.87,31.12]
[1748928136806,6.2899,158.9,158.87,37.4108]
[1748928137003,6.33818324,158.9,158.87,37.45226861]
[1748928137503,6.2901,158.89,158.87,31.16146861]
[1748928139006,6.2904,158.88,158.87,31.16146861]
[1748928139300,0.04828324,158.9,158.87,31.16146861]
[1748928140406,6.2903,158.89,158.87,31.16146861]
[1748928141110,0.04828324,158.9,158.87,31.16146861]
[1748928141999,6.2901,158.89,158.87,31.16146861]
[1748928142202,0.04828324,158.9,158.87,31.16146861]
[1748928142405,0.04828324,158.9,158.87,0.04146861]
[1748928142907,6.2904,158.88,158.87,0.04146861]
[1748928145411,6.2904,158.89,158.87,0.04146861]
[1748928146116,6.2904,158.89,158.87,6.33226861]
[1748928147609,6.2904,158.89,158.87,5.88376389]
[1748928148313,6.2904,158.89,158.87,0.04146861]
[1748928148615,6.2904,158.89,158.87,5.88376389]
[1748928149110,6.33808324,158.9,158.87,12.17456389]
[1748928149706,0.04828324,158.9,158.89,6.29]
[1748928149917,0.04828324,158.9,158.89,12.13848675]
[1748928150115,0.04828324,158.9,158.89,6.29]
[1748928151022,0.04828324,158.9,158.89,14.08078556]
[1748928151317,0.04828324,158.9,158.89,6.29]
[1748928151818,0.04828324,158.9,158.89,14.08078556]
[1748928154725,0.04828324,158.9,158.89,6.29]
[1748928159419,31.14,158.97,158.88,49.37292549]
[1748928159623,6.55728849,158.98,158.88,49.37292549]
[1748928159624,41.92388849,159.0,158.93,5.84917151]
[1748928159920,6.2867,158.98,158.93,5.84917151]
[1748928160121,41.92388849,159.0,158.94,6.2878]
[1748928160327,6.2868,158.98,158.95,0.04693367]
[1748928160619,0.04186277,158.99,158.95,0.04693367]
[1748928161223,6.2871,158.97,158.95,0.04693367]
[1748928161428,0.04186277,158.99,158.95,0.04693367]
[1748928163122,6.2873,158.96,158.95,0.04693367]
[1748928163418,12.84458849,158.96,158.95,0.04693367]
[1748928164914,12.84458849,158.96,158.95,0.00972537]
[1748928169829,6.2873,158.96,158.95,0.00972537]
[1748928170031,12.84458849,158.96,158.95,0.00972537]
[1748928174430,6.2893,158.91,158.9,5.84985493]
[1748928174631,12.84658849,158.91,158.9,5.84985493]
[1748928174932,6.55728849,158.91,158.88,5.84985493]
[1748928175534,6.59765674,158.91,158.88,5.89398563]
[1748928176128,6.29,158.89,158.88,5.89398563]
[1748928176729,6.29,158.89,158.88,0.0441307]
[1748928177132,12.84728849,158.89,158.88,0.0441307]
[1748928182836,6.2898,158.9,158.88,0.0441307]
[1748928183040,6.59765674,158.91,158.88,0.0441307]
[1748928183247,0.04036825,158.91,158.88,0.0441307]
[1748928183740,6.55728849,158.89,158.88,0.0441307]
[1748928183943,12.84728849,158.89,158.88,0.0441307]
[1748928185248,6.2897,158.9,158.88,0.0441307]
[1748928185651,6.59765674,158.91,158.88,0.0441307]
[1748928185652,6.29,158.89,158.88,0.0441307]
[1748928186155,6.2897,158.9,158.88,0.0441307]
[1748928186547,6.59765674,158.91,158.88,0.0441307]
[1748928186751,6.2897,158.9,158.88,0.0441307]
[1748928187152,6.59765674,158.91,158.88,0.0441307]
[1748928187655,6.2899,158.9,158.88,0.0441307]
[1748928188453,12.88705674,158.91,158.88,0.0441307]
[1748928189453,6.2897,158.9,158.88,0.0441307]
[1748928195160,10.48700363,158.9,158.88,0.0441307]
[1748928195760,6.29,158.89,158.88,0.0441307]
[1748928197261,10.48730363,158.89,158.88,0.0441307]
[1748928199254,12.85035942,158.89,158.88,0.0441307]
[1748928203167,12.85035942,158.89,158.84,5.84549942]
[1748928203168,6.2916,158.85,158.84,5.84549942]
[1748928203356,6.56035942,158.86,158.83,5.84549942]
[1748928203564,6.56035942,158.84,158.82,5.84549942]
[1748928203869,6.2924,158.83,158.82,5.84549942]
[1748928204466,6.2928,158.82,158.81,0.04564577]
[1748928207662,12.85315942,158.82,158.81,0.04564577]
[1748928217484,12.85315942,158.82,158.81,4.577e-05]
[1748928218682,6.56035942,158.8,158.76,31.12]
[1748928219085,6.56035942,158.8,158.74,5.84078238]
[1748928219686,6.2948,158.77,158.74,12.13648238]
[1748928219890,6.2948,158.77,158.74,12.15691861]
[1748928222393,6.2948,158.77,158.74,6.31613623]
[1748928223690,6.2953,158.76,158.74,0.02043623]
[1748928224791,6.56035942,158.77,158.74,0.02043623]
[1748928224792,6.2956,158.75,158.74,0.02043623]
[1748928225391,6.56035942,158.77,158.74,0.02043623]
[1748928227001,6.2953,158.76,158.74,0.02043623]
[1748928227702,6.2953,158.76,158.74,0.00043623]
[1748928228597,6.2956,158.75,158.74,0.00043623]
[1748928229199,10.50024251,158.75,158.74,0.00043623]
[1748928243803,4.20464251,158.78,158.74,4.20507874]
[1748928244009,4.25204968,158.79,158.75,4.20464251]
[1748928244310,6.2945,158.78,158.75,10.49994251]
[1748928244509,4.25204968,158.79,158.75,10.49994251]
[1748928244714,4.20464251,158.78,158.75,6.2953]
[1748928245010,10.49914251,158.78,158.75,6.2953]
[1748928245314,0.04740717,158.79,158.76,6.2951]
[1748928245711,6.34160717,158.79,158.76,6.2951]
[1748928246303,6.2946,158.78,158.76,5.85444387]
[1748928248614,6.2946,158.78,158.75,6.2955]
[1748928248815,6.2946,158.78,158.76,5.86735591]
[1748928249617,6.2946,158.78,158.77,5.86735591]
[1748928250415,6.34160717,158.79,158.77,5.86735591]
[1748928251418,6.2944,158.78,158.77,5.86735591]
[1748928252419,6.2944,158.78,158.75,14.07956908]
[1748928252618,6.2944,158.78,158.77,5.86937134]
[1748928254518,6.34160717,158.79,158.77,5.86937134]
[1748928254719,0.04740717,158.79,158.77,5.86937134]
[1748928255624,6.2944,158.78,158.77,5.86937134]
[1748928256324,6.2944,158.78,158.77,5.86999653]
[1748928259327,6.34160717,158.79,158.77,5.86999653]
[1748928259530,6.34160717,158.79,158.78,5.86999653]
[1748928260329,6.34160717,158.79,158.78,5.87420769]
[1748928260726,6.34160717,158.79,158.77,5.87420769]
[1748928262135,6.2944,158.78,158.77,5.87420769]
[1748928263225,6.2944,158.78,158.77,5.87528208]
[1748928264233,6.2944,158.78,158.77,5.87530563]
[1748928264438,6.2944,158.78,158.75,45.19956908]
[1748928264740,6.2944,158.78,158.77,5.87653706]
[1748928265037,6.2944,158.78,158.75,45.19956908]
[1748928265233,6.2944,158.78,158.75,49.40273272]
[1748928265942,6.2944,158.78,158.77,5.87626351]
[1748928266136,4.25057081,158.79,158.77,5.87626351]
[1748928266330,10.54477081,158.79,158.78,5.87626351]
[1748928268036,6.2944,158.78,158.77,5.87626351]
[1748928269434,6.2944,158.78,158.76,11.98753272]
[1748928270035,10.54477081,158.79,158.76,18.28263272]
[1748928270343,10.54477081,158.79,158.78,5.87660285]
[1748928271840,10.54477081,158.79,158.76,18.28263272]
[1748928272040,10.54477081,158.79,158.78,5.87641186]
[1748928272241,6.34160717,158.79,158.78,5.87641186]
[1748928274741,6.34160717,158.79,158.78,5.8764624]
[1748928275840,6.34160717,158.79,158.78,5.87613791]
[1748928283651,6.2944,158.78,158.76,18.33364685]
[1748928283845,0.04740717,158.79,158.76,18.33364685]
[1748928284052,6.34150717,158.79,158.78,5.87625138]
[1748928284754,6.34150717,158.79,158.76,18.33364685]
[1748928285755,6.34150717,158.79,158.78,5.87830746]
[1748928285956,0.04740717,158.79,158.77,6.2945]
[1748928286263,0.04740717,158.79,158.77,14.12978321]
[1748928286553,0.04740717,158.79,158.78,6.2944]
[1748928286756,85.9764233,158.84,158.78,4.20316364]
[1748928286953,85.9764233,158.84,158.81,4.20316364]
[1748928287454,85.9764233,158.84,158.81,10.08131809]
[1748928287655,85.9764233,158.84,158.82,5.87815445]
[1748928287856,85.9764233,158.84,158.8,4.20316364]
[1748928287857,0.0428221,158.83,158.81,5.87815445]
[1748928288157,0.0428221,158.83,158.82,4.20316364]
[1748928288357,0.0428221,158.83,158.82,10.08131809]
[1748928288550,0.0428221,158.83,158.82,10.49596364]
[1748928293167,0.0428221,158.83,158.82,4.20316364]
[1748928295673,0.0428221,158.83,158.82,10.06301332]
[1748928295967,0.0428221,158.83,158.82,4.20316364]
[1748928296562,0.0428221,158.83,158.82,10.06203791]
[1748928297161,0.0428221,158.83,158.82,5.85887427]
[1748928297162,6.3352221,158.83,158.82,5.85887427]
[1748928297566,6.3352221,158.83,158.81,10.06203791]
[1748928297766,6.3352221,158.83,158.81,5.85887427]
[1748928298166,6.2928,158.82,158.81,5.85887427]
[1748928298565,6.2928,158.82,158.8,10.10229205]
[1748928299071,6.2928,158.82,158.8,10.10404055]
[1748928299967,6.3354221,158.83,158.8,10.10404055]
[1748928300371,0.0428221,158.83,158.8,10.10404055]
[1748928301281,4.24598574,158.83,158.8,5.90087691]
[1748928301979,6.2928,158.82,158.8,5.90087691]
[1748928305275,6.2928,158.82,158.8,4.24341778]
[1748928305475,6.2928,158.82,158.8,10.10465771]
[1748928305669,6.2932,158.81,158.8,10.10465771]
[1748928306276,10.49636364,158.81,158.8,5.90149407]
[1748928306573,10.49636364,158.81,158.8,0.04025414]
[1748928307774,6.2944,158.78,158.77,5.86123993]
[1748928307982,10.49756364,158.78,158.77,5.86123993]
[1748928308781,10.49756364,158.78,158.73,35.30316364]
[1748928308782,4.20316364,158.78,158.75,5.86123993]
[1748928309079,4.20316364,158.78,158.73,43.13844685]
[1748928309278,4.20316364,158.78,158.75,5.86786001]
[1748928309477,6.2948,158.77,158.75,5.86786001]
[1748928309879,6.2946,158.78,158.75,5.86786001]
[1748928310481,6.2946,158.78,158.75,12.16336001]
[1748928311484,6.2946,158.78,158.75,16.36652365]
[1748928312286,6.2948,158.77,158.75,10.07102365]
[1748928316886,0.04342702,158.79,158.76,4.20316364]
[1748928317076,0.04342702,158.79,158.78,4.20316364]
[1748928317382,0.04342702,158.79,158.78,10.0650001]
[1748928317581,0.04342702,158.79,158.78,4.20316364]
[1748928317980,0.04342702,158.79,158.78,16.3594001]
[1748928318677,6.293,158.82,158.79,6.2939]
[1748928318973,4.20316364,158.82,158.78,10.0650001]
[1748928319176,6.56635534,158.84,158.78,5.86183646]
[1748928319585,0.04064683,158.83,158.79,0.04807624]
[1748928320189,6.2936,158.8,158.79,0.04807624]
[1748928320676,6.2934,158.81,158.79,0.04807624]
[1748928321073,0.04064683,158.83,158.79,0.04807624]
[1748928321278,0.04064683,158.83,158.79,5.90669897]
[1748928322084,6.2929,158.82,158.79,12.20069897]
[1748928322986,6.2929,158.82,158.79,5.90669897]
[1748928324988,6.2929,158.82,158.79,12.20069897]
[1748928327989,6.2929,158.82,158.79,5.90669897]
[1748928328485,6.2929,158.82,158.79,5.90839579]
[1748928328989,6.2929,158.82,158.8,5.86031955]
[1748928329490,6.2929,158.82,158.79,5.90839579]
[1748928329692,6.2929,158.82,158.8,5.86031955]
[1748928331486,6.2929,158.82,158.79,5.90839579]
[1748928332496,0.04064683,158.83,158.79,5.90841508]
[1748928332692,0.04064683,158.83,158.8,12.42669418]
[1748928332994,0.04064683,158.83,158.82,6.2928]
[1748928333987,0.04064683,158.83,158.81,43.23333884]
[1748928334391,0.04064683,158.83,158.81,36.94033884]
[1748928334992,0.04064683,158.83,158.81,36.93800163]
[1748928335783,6.2928,158.82,158.81,5.85800163]
[1748928335988,6.2928,158.82,158.79,14.44971479]
[1748928335989,6.2928,158.82,158.8,5.85800163]
[1748928336391,6.2928,158.82,158.8,5.85988962]
[1748928339800,6.2928,158.82,158.81,5.85988962]
[1748928340198,6.2928,158.82,158.81,5.8637804]
[1748928341803,6.2928,158.82,158.8,5.8637804]
[1748928342600,6.2928,158.82,158.81,5.8637804]
[1748928344008,6.33324683,158.83,158.81,5.8637804]
[1748928345702,6.2928,158.82,158.81,5.8637804]
[1748928345908,0.04064683,158.83,158.8,5.8637804]
[1748928346407,6.2928,158.82,158.81,5.8637804]
[1748928346799,0.04064683,158.83,158.8,5.8637804]
[1748928347311,4.24249584,158.83,158.79,16.40760565]
[1748928347507,6.293,158.82,158.79,16.40760565]
[1748928347701,6.293,158.82,158.79,10.54382525]
[1748928347897,6.293,158.82,158.79,16.4106671]
[1748928348805,6.293,158.82,158.8,5.86684185]
[1748928351809,6.293,158.82,158.8,5.8656498]
[1748928354714,6.293,158.82,158.81,5.8656498]
[1748928356519,6.2932,158.81,158.8,5.8656498]
[1748928356702,6.2932,158.81,158.79,5.91372604]
[1748928357112,6.2932,158.81,158.8,5.8656498]
[1748928357421,6.2932,158.81,158.79,5.91372604]
[1748928359313,6.2936,158.8,158.79,5.91372604]
[1748928359507,6.2936,158.8,158.79,5.92319665]
[1748928359711,6.2936,158.8,158.79,0.04807624]
[1748928360013,6.2933,158.81,158.79,0.04807624]
[1748928360316,6.2933,158.81,158.8,5.87688409]
[1748928365729,6.2936,158.8,158.79,0.04807624]
[1748928368829,6.2934,158.81,158.79,0.04807624]
[1748928369030,6.6056487,158.83,158.8,5.87892989]
[1748928369234,4.20209461,158.82,158.8,5.87892989]
[1748928369525,10.49519461,158.82,158.81,5.8780841]
[1748928371029,6.2931,158.82,158.81,5.8780841]
[1748928371333,0.04064683,158.83,158.81,4.20209461]
[1748928371626,0.04064683,158.83,158.82,4.20209461]
[1748928372632,0.04064683,158.83,158.82,12.03737782]
[1748928373126,0.04064683,158.83,158.82,10.49489461]
[1748928376836,0.04064683,158.83,158.82,4.20209461]
[1748928378333,0.04064683,158.83,158.82,10.49489461]
[1748928380436,0.04064683,158.83,158.82,4.20209461]
[1748928381931,0.04064683,158.83,158.82,10.49489461]
[1748928388944,0.04064683,158.83,158.82,4.20209461]
[1748928389642,6.33304683,158.83,158.82,4.20209461]
[1748928389832,6.33304683,158.83,158.82,5.8649938]
[1748928392745,6.33304683,158.83,158.82,5.86827824]
[1748928395250,6.33304683,158.83,158.82,5.86803485]
[1748928396552,0.04064683,158.83,158.82,5.86803485]
[1748928396751,0.04064683,158.83,158.82,5.86832746]
[1748928398751,6.33304683,158.83,158.82,5.86832746]
[1748928399554,6.33304683,158.83,158.82,10.07042207]
[1748928400454,6.33304683,158.83,158.82,4.20209461]
[1748928400656,6.33304683,158.83,158.82,10.07084072]
[1748928402953,6.2928,158.82,158.81,5.86874611]
[1748928404262,6.2932,158.81,158.8,5.86874611]
[1748928408357,6.2932,158.81,158.8,5.87293196]
[1748928412263,6.2932,158.81,158.8,5.87329206]
[1748928414665,10.49529461,158.81,158.8,5.87329206]
[1748928415058,6.2936,158.8,158.79,5.9213683]
[1748928415263,10.49569461,158.8,158.79,5.9213683]
[1748928416165,10.49569461,158.8,158.79,5.92478399]
[1748928416866,10.49569461,158.8,158.79,0.04807624]
[1748928422267,6.2934,158.81,158.79,10.12353803]
[1748928422463,0.04064683,158.83,158.8,4.20209461]
[1748928422769,0.04064683,158.83,158.82,4.20209461]
[1748928424778,4.24274144,158.83,158.81,5.87145807]
[1748928425074,4.20209461,158.82,158.8,5.87145807]
[1748928425570,6.2932,158.81,158.8,5.87145807]
[1748928430080,6.2932,158.81,158.79,35.29017085]
[1748928430280,6.2932,158.81,158.8,5.8751195]
[1748928432077,0.04064683,158.83,158.8,5.8751195]
[1748928432384,0.04064683,158.83,158.8,10.07721411]
[1748928433081,0.04064683,158.83,158.82,10.07721411]
[1748928433467,6.33304683,158.83,158.82,10.07721411]
[1748928433977,6.33304683,158.83,158.82,10.07713737]
[1748928434479,6.33304683,158.83,158.82,5.87504276]
[1748928436681,6.33304683,158.83,158.81,12.03737782]
[1748928439286,6.2928,158.82,158.81,4.20209461]
[1748928440075,6.33324683,158.83,158.81,4.20209461]
[1748928440275,6.33324683,158.83,158.82,5.87317354]
[1748928441685,6.33324683,158.83,158.81,4.20209461]
[1748928441686,6.2932,158.82,158.81,5.8743475]
[1748928441887,10.49529461,158.82,158.81,5.8743475]
[1748928442586,6.2932,158.82,158.81,5.8743475]
[1748928446088,10.53534144,158.83,158.81,5.8743475]
[1748928446693,6.2928,158.82,158.81,5.8743475]
[1748928449098,10.53534144,158.83,158.81,5.8743475]
[1748928449392,0.04064683,158.83,158.8,10.49559461]
[1748928449696,0.04064683,158.83,158.81,5.87546753]
[1748928450596,6.33324683,158.83,158.81,12.16866753]
[1748928450791,6.33324683,158.83,158.81,16.37076214]
[1748928450999,6.33324683,158.83,158.82,5.87546753]
[1748928453301,6.33324683,158.83,158.81,4.20209461]
[1748928453495,0.04064683,158.83,158.82,10.07838357]
[1748928453699,0.04064683,158.83,158.82,4.20209461]
[1748928453893,0.04064683,158.83,158.82,18.33017782]
[1748928456601,0.04064683,158.83,158.82,10.49489461]
[1748928457602,0.04064683,158.83,158.82,4.20209461]
[1748928458507,0.04064683,158.83,158.82,12.03737782]
[1748928460809,0.04064683,158.83,158.82,4.20209461]
[1748928462817,0.04064683,158.83,158.81,12.03737782]
[1748928463015,6.33304683,158.83,158.81,4.20209461]
[1748928463414,6.33304683,158.83,158.81,12.03737782]
[1748928463813,6.33304683,158.83,158.81,4.20209461]
[1748928464214,6.33304683,158.83,158.81,12.03737782]
[1748928465019,6.33304683,158.83,158.81,4.20209461]
[1748928465817,6.33304683,158.83,158.81,12.03737782]
[1748928467222,0.04064683,158.83,158.81,12.03737782]
[1748928468918,0.04064683,158.83,158.81,18.33047782]
[1748928469720,0.04064683,158.83,158.82,4.20209461]
[1748928472723,0.04064683,158.83,158.82,10.49489461]
[1748928472919,0.04064683,158.83,158.82,18.33017782]
[1748928474823,0.04064683,158.83,158.82,12.03737782]
[1748928476127,0.04064683,158.83,158.82,18.33017782]
[1748928483316,31.02,158.89,158.82,18.33017782]
[1748928483523,4.20209461,158.89,158.85,10.07395652]
[1748928483832,4.20209461,158.88,158.85,5.87186191]
[1748928484024,4.20209461,158.88,158.86,5.87186191]
[1748928484621,10.49329461,158.87,158.86,5.87186191]
[1748928485428,6.2912,158.86,158.85,5.91601963]
[1748928485633,6.21679461,158.88,158.85,5.91601963]
[1748928485830,4.20209461,158.88,158.85,0.04415772]
[1748928486134,6.2911,158.87,158.85,5.91601963]
[1748928487226,6.2911,158.87,158.85,11.7841958]
[1748928488029,6.2911,158.87,158.85,5.91233389]
[1748928489136,6.2912,158.86,158.85,5.91233389]
[1748928491637,10.49309461,158.87,158.85,5.91324902]
[1748928492436,4.20209461,158.87,158.85,5.91324902]
[1748928493240,10.49269461,158.88,158.85,5.91324902]
[1748928494937,6.2906,158.88,158.85,5.91324902]
[1748928496033,10.08509976,158.95,158.87,4.20209461]
[1748928496234,7.84260209,158.97,158.87,4.20209461]
[1748928496235,4.20209461,158.94,158.9,4.20209461]
[1748928496435,4.20209461,158.93,158.9,5.86410699]
[1748928496635,4.20209461,158.94,158.9,10.0662016]
[1748928497140,4.20209461,158.94,158.9,10.10684624]
[1748928497141,4.24669646,158.94,158.9,10.10684624]
[1748928498043,4.24669646,158.94,158.9,16.39644624]
[1748928498337,4.24669646,158.94,158.9,10.10684624]
[1748928498539,6.2888,158.93,158.9,10.10684624]
[1748928498729,6.2888,158.93,158.91,4.20209461]
[1748928499746,6.2889,158.92,158.9,10.09915975]
[1748928499945,4.24669646,158.94,158.9,10.09915975]
[1748928500436,6.2888,158.93,158.9,10.09915975]
[1748928501239,6.2888,158.93,158.91,4.20209461]
[1748928501446,6.33280185,158.94,158.91,4.20209461]
[1748928506953,6.2886,158.93,158.91,4.20209461]
[1748928508846,4.20209461,158.93,158.9,0.04064464]
[1748928509051,0.04460185,158.94,158.9,0.04064464]
[1748928509256,4.20209461,158.93,158.9,0.04064464]
[1748928509457,4.20209461,158.93,158.9,4.24273925]
[1748928509458,6.2885,158.93,158.9,4.24273925]
[1748928509650,6.2885,158.93,158.91,4.20209461]
[1748928509847,6.2885,158.93,158.92,4.20209461]
[1748928511560,6.33280185,158.94,158.92,4.20209461]
[1748928511758,6.33280185,158.94,158.93,4.20209461]
[1748928513153,6.2885,158.93,158.92,4.20209461]
[1748928513358,0.04460185,158.94,158.92,4.20209461]
[1748928513962,6.33300185,158.94,158.92,4.20209461]
[1748928514164,0.04460185,158.94,158.92,4.20209461]
[1748928514550,6.2885,158.93,158.92,4.20209461]
[1748928515669,6.2889,158.92,158.9,0.04064464]
[1748928515969,6.2889,158.92,158.91,4.20209461]
[1748928516361,6.2886,158.93,158.91,4.20209461]
[1748928517566,0.04460185,158.94,158.91,4.20209461]
[1748928518466,6.2889,158.92,158.91,4.20209461]
[1748928518666,0.04460185,158.94,158.91,4.20209461]
[1748928519067,6.2887,158.93,158.91,4.20209461]
[1748928519768,6.2887,158.93,158.92,4.20209461]
[1748928524966,6.2887,158.93,158.91,4.20209461]
[1748928525775,6.2887,158.93,158.92,4.20209461]
[1748928529479,0.04460185,158.94,158.92,4.20209461]
[1748928529480,6.33290185,158.94,158.92,4.20209461]
[1748928529678,6.33290185,158.94,158.93,4.20209461]
[1748928534081,0.04460185,158.94,158.93,4.20209461]
[1748928536084,0.04460185,158.94,158.93,10.0522248]
[1748928536278,0.04460185,158.94,158.93,16.3407248]
[1748928537782,0.04460185,158.94,158.93,10.49059461]
[1748928539986,0.04460185,158.94,158.93,18.32587782]
[1748928540290,0.04460185,158.94,158.93,10.49059461]
[1748928540677,0.04460185,158.94,158.93,12.03737782]
[1748928541691,0.04460185,158.94,158.93,7.83528321]
[1748928541894,0.04460185,158.94,158.92,12.03737782]
[1748928542085,0.04460185,158.94,158.93,5.8624729]
[1748928542586,6.33270185,158.94,158.93,5.8624729]
[1748928544492,6.33270185,158.94,158.93,5.8634217]
[1748928547689,6.2885,158.93,158.92,5.8634217]
[1748928547991,4.20209461,158.93,158.91,5.8634217]
[1748928548191,10.49099461,158.92,158.91,11.72882061]
[1748928548394,4.20209461,158.92,158.89,4.34068036]
[1748928548691,4.20209461,158.9,158.87,11.675637]
[1748928548886,4.20209461,158.88,158.85,11.675637]
[1748928549087,4.20209461,158.87,158.85,11.675637]
[1748928549592,4.20209461,158.87,158.84,0.04097255]
[1748928549799,4.20209461,158.87,158.84,4.24306716]
[1748928549994,10.49319461,158.87,158.84,4.24306716]
[1748928551296,6.2911,158.87,158.84,0.04097255]
[1748928554586,0.04646978,158.88,158.84,0.04097255]
[1748928554587,6.33706978,158.88,158.84,0.04097255]
[1748928554787,6.33706978,158.88,158.84,6.60284207]
[1748928555998,6.33706978,158.88,158.85,6.2914]
[1748928556587,0.04646978,158.88,158.85,6.2914]
[1748928558798,6.33686978,158.88,158.85,6.2914]
[1748928559189,6.33686978,158.88,158.84,6.60284207]
[1748928559394,6.2909,158.87,158.84,6.60284207]
[1748928559789,6.2909,158.87,158.84,0.04097255]
[1748928561105,6.2909,158.87,158.84,6.33287255]
[1748928562508,6.33706978,158.88,158.84,6.33287255]
[1748928565905,6.2909,158.87,158.84,6.33287255]
[1748928569001,0.04646978,158.88,158.85,6.2916]
[1748928569002,6.33706978,158.88,158.85,6.2916]
[1748928569909,6.2908,158.87,158.84,6.33287255]
[1748928571901,0.04646978,158.88,158.84,0.04097255]
[1748928573113,6.2915,158.86,158.84,0.04097255]
[1748928573315,6.2915,158.86,158.84,4.24039938]
[1748928574705,6.2916,158.85,158.84,0.04097255]
[1748928575515,6.2913,158.86,158.84,0.04097255]
[1748928577109,6.2916,158.85,158.84,0.04097255]
[1748928583310,6.2913,158.86,158.84,0.04097255]
[1748928584009,6.2913,158.86,158.84,4.24039938]
[1748928585123,10.49042683,158.87,158.84,0.04097255]
[1748928585424,10.49042683,158.87,158.84,6.33297255]
[1748928585627,10.49042683,158.87,158.84,0.04097255]
[1748928588810,6.2914,158.86,158.84,0.04097255]
[1748928589820,6.2916,158.85,158.84,0.04097255]
[1748928593824,10.49082683,158.86,158.84,0.04097255]
[1748928596528,6.2914,158.86,158.84,0.04097255]
[1748928600124,10.49082683,158.86,158.84,0.04097255]
[1748928600327,4.19942683,158.87,158.84,0.04097255]
[1748928601223,4.19942683,158.87,158.85,6.2914]
[1748928601423,4.19942683,158.87,158.84,0.04097255]
[1748928601831,10.49052683,158.87,158.84,6.33277255]
[1748928603326,10.49072683,158.86,158.84,0.04097255]
[1748928603527,4.19942683,158.86,158.84,0.04097255]
[1748928604225,6.2916,158.85,158.84,0.04097255]
[1748928604830,10.49082683,158.86,158.84,0.04097255]
[1748928605127,4.19942683,158.86,158.84,0.04097255]
[1748928605329,0.04646978,158.88,158.85,4.19942683]
[1748928606430,0.04646978,158.88,158.86,6.2912]
[1748928607229,0.04646978,158.88,158.87,6.2908]
[1748928607737,6.289,158.92,158.87,4.19942683]
[1748928608029,10.48842683,158.92,158.89,6.2897]
[1748928608222,6.289,158.92,158.89,10.48912683]
[1748928608734,0.04357148,158.92,158.9,6.2896]
[1748928609132,0.04357148,158.92,158.9,10.48902683]
[1748928613041,0.04357148,158.92,158.9,4.19942683]
[1748928616041,6.33247148,158.92,158.9,4.19942683]
[1748928616442,0.04357148,158.92,158.9,4.19942683]
[1748928616642,0.04357148,158.92,158.9,10.48902683]
[1748928616849,0.04357148,158.92,158.9,4.19942683]
[1748928618140,6.33247148,158.92,158.9,4.19942683]
[1748928619542,6.33247148,158.92,158.89,6.33608253]
[1748928619543,0.04357148,158.92,158.91,4.19942683]
[1748928620136,0.04357148,158.92,158.91,10.48862683]
[1748928620545,30.96,158.99,158.91,4.19942683]
[1748928620747,10.48662683,158.97,158.93,10.48772683]
[1748928621043,4.19942683,158.98,158.94,4.19942683]
[1748928621340,10.48652683,158.97,158.93,10.48772683]
[1748928621534,10.52693054,158.97,158.93,10.53592926]
[1748928621946,4.19942683,158.94,158.93,0.04820243]
[1748928622542,10.48752683,158.94,158.93,0.04820243]
[1748928623446,6.2881,158.94,158.93,0.04820243]
[1748928623855,10.48752683,158.94,158.93,0.04820243]
[1748928624749,6.2881,158.94,158.93,0.04820243]
[1748928625349,10.48752683,158.94,158.93,0.04820243]
[1748928626842,4.19942683,158.94,158.93,0.04820243]
[1748928627048,6.2878,158.95,158.93,0.04820243]
[1748928628050,10.48722683,158.95,158.93,0.04820243]
[1748928630052,4.19942683,158.95,158.93,0.04820243]
[1748928630548,10.48722683,158.95,158.93,0.04820243]
[1748928634360,0.04040371,158.97,158.93,0.04820243]
[1748928634361,10.48752683,158.94,158.93,0.04820243]
[1748928635162,6.2881,158.94,158.93,0.04820243]
[1748928638159,4.19942683,158.94,158.89,5.8425759]
[1748928638360,4.19942683,158.92,158.88,10.04200273]
[1748928638555,4.19942683,158.92,158.88,4.19942683]
[1748928638953,4.24062013,158.92,158.88,4.24373996]
[1748928639157,0.0411933,158.92,158.88,0.04431313]
[1748928639761,6.2893,158.91,158.88,6.33451313]
[1748928639961,0.0411933,158.92,158.88,0.04431313]